[Event "Early-Titled-Tuesday-Blitz-October-10-2023"]
[Site "Chess.com"]
[Date "2023.10.10"]
[Round "7"]
[White "RodTwinkz"]
[Black "mapleaff"]
[Result "1-0"]
[WhiteElo "2791"]
[BlackElo "2369"]
[TimeControl "180+1"]
[EndTime "9:15:48 PDT"]
[Termination "RodTwinkz won on time"]

1. e4 {[%clk 0:03:00.9]} 1... c5 {[%clk 0:02:46.2]} 2. Nc3 {[%clk 0:03:00.3]}
2... Nf6 {[%clk 0:02:46.5]} 3. e5 {[%clk 0:02:56.7]} 3... Ng8 {[%clk 0:02:45.4]}
4. f4 {[%clk 0:02:56.6]} 4... d5 {[%clk 0:02:45]} 5. Nf3 {[%clk 0:02:45.5]} 5...
Nc6 {[%clk 0:02:35]} 6. d3 {[%clk 0:02:42.8]} 6... Bg4 {[%clk 0:02:14.8]} 7. Be2
{[%clk 0:02:41.4]} 7... Bxf3 {[%clk 0:02:13.1]} 8. Bxf3 {[%clk 0:02:40.6]} 8...
e6 {[%clk 0:02:14]} 9. O-O {[%clk 0:02:40.1]} 9... Nge7 {[%clk 0:02:13.5]} 10.
Ne2 {[%clk 0:02:35]} 10... h5 {[%clk 0:02:11]} 11. c4 {[%clk 0:02:23.8]} 11...
g6 {[%clk 0:01:55.9]} 12. Nc3 {[%clk 0:02:21.3]} 12... Nd4 {[%clk 0:01:47.8]}
13. cxd5 {[%clk 0:02:17]} 13... Nxf3+ {[%clk 0:01:47.6]} 14. Qxf3 {[%clk
0:02:17.5]} 14... Nxd5 {[%clk 0:01:48.1]} 15. Nxd5 {[%clk 0:02:14.5]} 15... Qxd5
{[%clk 0:01:49]} 16. Qxd5 {[%clk 0:02:11.3]} 16... exd5 {[%clk 0:01:49.9]} 17.
f5 {[%clk 0:02:11.9]} 17... Be7 {[%clk 0:01:34.8]} 18. Bd2 {[%clk 0:01:45.4]}
18... Rh7 {[%clk 0:01:08.2]} 19. Rae1 {[%clk 0:01:41.2]} 19... gxf5 {[%clk
0:01:06.5]} 20. Rxf5 {[%clk 0:01:12.9]} 20... Kd7 {[%clk 0:01:06]} 21. Rxf7
{[%clk 0:01:12.7]} 21... Rxf7 {[%clk 0:01:05.1]} 22. e6+ {[%clk 0:01:13]} 22...
Ke8 {[%clk 0:01:06]} 23. exf7+ {[%clk 0:01:13.5]} 23... Kxf7 {[%clk 0:01:06.9]}
24. Re5 {[%clk 0:01:13.8]} 24... Bf6 {[%clk 0:00:57.2]} 25. Rxd5 {[%clk
0:01:12.9]} 25... Bxb2 {[%clk 0:00:57]} 26. Rxh5 {[%clk 0:01:07.2]} 26... Rd8
{[%clk 0:00:53.9]} 27. Be3 {[%clk 0:00:38.5]} 27... b6 {[%clk 0:00:47.7]} 28.
Rh7+ {[%clk 0:00:38.1]} 28... Kg6 {[%clk 0:00:47.6]} 29. Rxa7 {[%clk 0:00:38.2]}
29... Rxd3 {[%clk 0:00:47.8]} 30. Kf2 {[%clk 0:00:38.8]} 30... c4 {[%clk
0:00:25.4]} 31. Ra6 {[%clk 0:00:36.2]} 31... Rd6 {[%clk 0:00:16.7]} 32. Rxb6
{[%clk 0:00:34.6]} 32... Rxb6 {[%clk 0:00:16.7]} 33. Bxb6 {[%clk 0:00:35.5]}
33... c3 {[%clk 0:00:17.1]} 34. Bd4 {[%clk 0:00:35.6]} 34... Kf5 {[%clk
0:00:16.1]} 35. Ke2 {[%clk 0:00:33.6]} 35... Ke4 {[%clk 0:00:15.9]} 36. Bg7
{[%clk 0:00:33.7]} 36... Ba1 {[%clk 0:00:07.2]} 37. Bxc3 {[%clk 0:00:26.2]}
37... Bxc3 {[%clk 0:00:07]} 38. a4 {[%clk 0:00:25.7]} 38... Ba5 {[%clk 0:00:06]}
39. Kf2 {[%clk 0:00:25.7]} 39... Kf4 {[%clk 0:00:04.9]} 40. g3+ {[%clk
0:00:26.2]} 40... Kg4 {[%clk 0:00:04.7]} 41. Kg2 {[%clk 0:00:27.1]} 41... Be1
{[%clk 0:00:03.6]} 42. h3+ {[%clk 0:00:28]} 42... Kg5 {[%clk 0:00:03.8]} 43. Kf3
{[%clk 0:00:28.6]} 43... Kf5 {[%clk 0:00:03.9]} 44. h4 {[%clk 0:00:29]} 44...
Kg6 {[%clk 0:00:01.9]} 45. Kg4 {[%clk 0:00:28.8]} 45... Kh6 {[%clk 0:00:01.9]}
46. h5 {[%clk 0:00:28.5]} 1-0

[Event "Early-Titled-Tuesday-Blitz-October-10-2023"]
[Site "Chess.com"]
[Date "2023.10.10"]
[Round "7"]
[White "maracayo"]
[Black "akanga001"]
[Result "1-0"]
[WhiteElo "2375"]
[BlackElo "2030"]
[TimeControl "180+1"]
[EndTime "9:15:49 PDT"]
[Termination "maracayo won by resignation"]

1. e4 {[%clk 0:03:00.9]} 1... e6 {[%clk 0:02:58.9]} 2. d4 {[%clk 0:02:59.9]}
2... d5 {[%clk 0:02:59.1]} 3. Nc3 {[%clk 0:02:59.2]} 3... Bb4 {[%clk 0:02:58.3]}
4. Ne2 {[%clk 0:02:53.5]} 4... c5 {[%clk 0:02:55.8]} 5. a3 {[%clk 0:02:40.2]}
5... Bxc3+ {[%clk 0:02:53.5]} 6. Nxc3 {[%clk 0:02:40.1]} 6... Nf6 {[%clk
0:02:48.3]} 7. dxc5 {[%clk 0:02:27]} 7... dxe4 {[%clk 0:02:43.3]} 8. Qxd8+
{[%clk 0:02:25.5]} 8... Kxd8 {[%clk 0:02:44.2]} 9. Bg5 {[%clk 0:02:24.3]} 9...
Nd7 {[%clk 0:02:32.8]} 10. Nxe4 {[%clk 0:02:16.7]} 10... h6 {[%clk 0:02:33.1]}
11. Bxf6+ {[%clk 0:02:12.6]} 11... Nxf6 {[%clk 0:02:29.7]} 12. Nxf6 {[%clk
0:02:06.8]} 12... gxf6 {[%clk 0:02:29.2]} 13. O-O-O+ {[%clk 0:02:07.3]} 13...
Ke7 {[%clk 0:02:28.5]} 14. Bb5 {[%clk 0:02:01.6]} 14... a6 {[%clk 0:02:27.3]}
15. Ba4 {[%clk 0:02:01.1]} 15... Rg8 {[%clk 0:02:27.9]} 16. g3 {[%clk
0:01:59.6]} 16... Rg4 {[%clk 0:02:26.1]} 17. f4 {[%clk 0:01:54.5]} 17... h5
{[%clk 0:02:23.2]} 18. Rd3 {[%clk 0:01:38.9]} 18... h4 {[%clk 0:02:22.4]} 19.
Rhd1 {[%clk 0:01:38.4]} 19... hxg3 {[%clk 0:02:16.2]} 20. hxg3 {[%clk
0:01:39.3]} 20... Rg8 {[%clk 0:02:15.9]} 21. b4 {[%clk 0:00:54.8]} 21... e5
{[%clk 0:02:14.5]} 22. Re3 {[%clk 0:00:48.9]} 22... Bg4 {[%clk 0:02:10.4]} 23.
Rd6 {[%clk 0:00:45.7]} 23... Be6 {[%clk 0:01:59.9]} 24. fxe5 {[%clk 0:00:38.9]}
24... fxe5 {[%clk 0:01:59.6]} 25. Bb3 {[%clk 0:00:38.6]} 25... Rg6 {[%clk
0:01:47.1]} 26. Rxe5 {[%clk 0:00:35.2]} 26... Rxg3 {[%clk 0:01:30.5]} 27. Bxe6
{[%clk 0:00:33.9]} 27... fxe6 {[%clk 0:01:30.7]} 28. Rdxe6+ {[%clk 0:00:32.4]}
28... Kf7 {[%clk 0:01:30.9]} 29. Re7+ {[%clk 0:00:22.2]} 29... Kf6 {[%clk
0:01:31.2]} 30. R5e6+ {[%clk 0:00:22]} 30... Kf5 {[%clk 0:01:30.7]} 31. Kb2
{[%clk 0:00:21.4]} 31... Rd8 {[%clk 0:01:18]} 32. Rd6 {[%clk 0:00:21.4]} 32...
Rb8 {[%clk 0:01:05.1]} 33. Rb6 {[%clk 0:00:19.7]} 33... a5 {[%clk 0:00:57]} 34.
c6 {[%clk 0:00:19.2]} 34... Rgg8 {[%clk 0:00:54.1]} 35. cxb7 {[%clk 0:00:18.1]}
35... axb4 {[%clk 0:00:53.6]} 36. Rxb4 {[%clk 0:00:18.4]} 36... Kf6 {[%clk
0:00:52]} 37. Re3 {[%clk 0:00:18.2]} 37... Rg7 {[%clk 0:00:50.5]} 38. Reb3
{[%clk 0:00:16.6]} 38... Ke6 {[%clk 0:00:50.3]} 39. a4 {[%clk 0:00:16.9]} 39...
Kd6 {[%clk 0:00:50.4]} 40. a5 {[%clk 0:00:17.4]} 40... Kc6 {[%clk 0:00:50.4]}
41. a6 {[%clk 0:00:17.8]} 41... Re7 {[%clk 0:00:12.1]} 42. a7 {[%clk 0:00:17]}
42... Rbxb7 {[%clk 0:00:10.6]} 43. a8=Q {[%clk 0:00:16.6]} 1-0

[Event "Early-Titled-Tuesday-Blitz-October-10-2023"]
[Site "Chess.com"]
[Date "2023.10.10"]
[Round "7"]
[White "JuniorJumper"]
[Black "hawes33"]
[Result "1/2-1/2"]
[WhiteElo "2581"]
[BlackElo "2273"]
[TimeControl "180+1"]
[EndTime "9:15:50 PDT"]
[Termination "Game drawn - insufficient material"]

1. d4 {[%clk 0:02:54.3]} 1... c5 {[%clk 0:03:00.9]} 2. d5 {[%clk 0:02:53.7]}
2... Nf6 {[%clk 0:03:01.4]} 3. Nc3 {[%clk 0:02:54.3]} 3... g6 {[%clk 0:03:01.4]}
4. e4 {[%clk 0:02:54.8]} 4... d6 {[%clk 0:03:00.6]} 5. h3 {[%clk 0:02:45]} 5...
Bg7 {[%clk 0:03:00.4]} 6. Nf3 {[%clk 0:02:45.7]} 6... O-O {[%clk 0:03:00.4]} 7.
Bd3 {[%clk 0:02:46.4]} 7... Na6 {[%clk 0:03:00.8]} 8. O-O {[%clk 0:02:41.7]}
8... Nc7 {[%clk 0:02:58.5]} 9. a4 {[%clk 0:02:41.5]} 9... b6 {[%clk 0:02:57.4]}
10. Bf4 {[%clk 0:02:31.5]} 10... Nh5 {[%clk 0:02:57.4]} 11. Bh2 {[%clk
0:02:31.3]} 11... Ba6 {[%clk 0:02:55.9]} 12. Nd2 {[%clk 0:02:26.8]} 12... Bxd3
{[%clk 0:02:55.3]} 13. cxd3 {[%clk 0:02:27.5]} 13... a6 {[%clk 0:02:55.7]} 14.
Qb3 {[%clk 0:02:14]} 14... b5 {[%clk 0:02:37.8]} 15. axb5 {[%clk 0:02:12.5]}
15... Nxb5 {[%clk 0:02:34.9]} 16. Nxb5 {[%clk 0:02:08.2]} 16... axb5 {[%clk
0:02:35.1]} 17. Rxa8 {[%clk 0:01:59.4]} 17... Qxa8 {[%clk 0:02:36]} 18. Qxb5
{[%clk 0:01:52]} 18... Rb8 {[%clk 0:02:34.5]} 19. Qc6 {[%clk 0:01:52.4]} 19...
Qa2 {[%clk 0:02:29.9]} 20. Nc4 {[%clk 0:01:28.8]} 20... Bxb2 {[%clk 0:02:23.8]}
21. Qc7 {[%clk 0:01:26.6]} 21... Re8 {[%clk 0:02:14.9]} 22. Qd7 {[%clk
0:01:19.2]} 22... Nf6 {[%clk 0:02:14]} 23. Qb5 {[%clk 0:01:04.6]} 23... Bd4
{[%clk 0:02:12.9]} 24. Bf4 {[%clk 0:00:56.7]} 24... Kg7 {[%clk 0:02:11.2]} 25.
Bg5 {[%clk 0:00:55]} 25... Ra8 {[%clk 0:02:10.1]} 26. Be3 {[%clk 0:00:44.9]}
26... Qc2 {[%clk 0:02:06.1]} 27. Bxd4 {[%clk 0:00:41.8]} 27... cxd4 {[%clk
0:02:07]} 28. Qb7 {[%clk 0:00:40.1]} 28... Re8 {[%clk 0:01:58.3]} 29. Qb1 {[%clk
0:00:39.6]} 29... Qc3 {[%clk 0:01:54.4]} 30. Rc1 {[%clk 0:00:36.5]} 30... Rb8
{[%clk 0:01:54]} 31. Qc2 {[%clk 0:00:26.7]} 31... Qxc2 {[%clk 0:01:50.8]} 32.
Rxc2 {[%clk 0:00:27.4]} 32... Rb1+ {[%clk 0:01:51.4]} 33. Kh2 {[%clk 0:00:28]}
33... Rb3 {[%clk 0:01:51.5]} 34. Rd2 {[%clk 0:00:20.6]} 34... Nd7 {[%clk
0:01:50.1]} 35. Na5 {[%clk 0:00:17.4]} 35... Ra3 {[%clk 0:01:50.4]} 36. Nc6
{[%clk 0:00:17.5]} 36... Kf6 {[%clk 0:01:45.1]} 37. Nxd4 {[%clk 0:00:17.9]}
37... Nc5 {[%clk 0:01:43]} 38. Nc2 {[%clk 0:00:14.1]} 38... Rxd3 {[%clk
0:01:42.4]} 39. Rxd3 {[%clk 0:00:14.1]} 39... Nxd3 {[%clk 0:01:43.1]} 40. Kg3
{[%clk 0:00:13.8]} 40... Ke5 {[%clk 0:01:41.6]} 41. f3 {[%clk 0:00:13.9]} 41...
f5 {[%clk 0:01:40.1]} 42. exf5 {[%clk 0:00:07.8]} 42... gxf5 {[%clk 0:01:40.1]}
43. Kh4 {[%clk 0:00:03.3]} 43... Kxd5 {[%clk 0:01:39.9]} 44. g4 {[%clk
0:00:03.3]} 44... Ke5 {[%clk 0:01:39]} 45. g5 {[%clk 0:00:03.4]} 45... Nf4
{[%clk 0:01:38.2]} 46. Ne3 {[%clk 0:00:03.1]} 46... d5 {[%clk 0:01:38.1]} 47.
Kg3 {[%clk 0:00:02.9]} 47... Ne2+ {[%clk 0:01:36.5]} 48. Kf2 {[%clk 0:00:03.1]}
48... Nf4 {[%clk 0:01:34.6]} 49. Kg3 {[%clk 0:00:03.4]} 49... d4 {[%clk
0:01:35]} 50. Nc4+ {[%clk 0:00:03.5]} 50... Kd5 {[%clk 0:01:35.4]} 51. Nb6+
{[%clk 0:00:04.1]} 51... Kc5 {[%clk 0:01:35.3]} 52. Na4+ {[%clk 0:00:04.1]}
52... Kb4 {[%clk 0:01:35.2]} 53. Kxf4 {[%clk 0:00:04.8]} 53... Kxa4 {[%clk
0:01:35.2]} 54. h4 {[%clk 0:00:05.5]} 54... Kb3 {[%clk 0:01:35.4]} 55. h5 {[%clk
0:00:06.3]} 55... d3 {[%clk 0:01:35.9]} 56. Ke3 {[%clk 0:00:06.8]} 56... Kc2
{[%clk 0:01:36.4]} 57. g6 {[%clk 0:00:07.7]} 57... hxg6 {[%clk 0:01:36.3]} 58.
hxg6 {[%clk 0:00:08.6]} 58... d2 {[%clk 0:01:37.2]} 59. g7 {[%clk 0:00:09.5]}
59... d1=Q {[%clk 0:01:37.7]} 60. g8=Q {[%clk 0:00:10.4]} 60... Qd3+ {[%clk
0:01:37.5]} 61. Kf4 {[%clk 0:00:08.2]} 61... Kd2 {[%clk 0:01:36.1]} 62. Qa2+
{[%clk 0:00:06.5]} 62... Ke1 {[%clk 0:01:35.4]} 63. Qa1+ {[%clk 0:00:06.5]}
63... Kf2 {[%clk 0:01:35.3]} 64. Qb2+ {[%clk 0:00:05.6]} 64... Qe2 {[%clk
0:01:30.7]} 65. Qd4+ {[%clk 0:00:04]} 65... Ke1 {[%clk 0:01:30]} 66. Qg1+ {[%clk
0:00:03]} 66... Kd2 {[%clk 0:01:29.9]} 67. Qd4+ {[%clk 0:00:02.5]} 67... Qd3
{[%clk 0:01:30.4]} 68. Qxd3+ {[%clk 0:00:02.4]} 68... Kxd3 {[%clk 0:01:30.7]}
69. Kxf5 {[%clk 0:00:03.3]} 69... Ke3 {[%clk 0:01:29.7]} 70. Ke6 {[%clk
0:00:03.8]} 70... Kf4 {[%clk 0:01:29.2]} 71. Kxe7 {[%clk 0:00:04.7]} 71... Kxf3
{[%clk 0:01:29.5]} 1/2-1/2

[Event "Early-Titled-Tuesday-Blitz-October-10-2023"]
[Site "Chess.com"]
[Date "2023.10.10"]
[Round "7"]
[White "azikom"]
[Black "pirulillo"]
[Result "1-0"]
[WhiteElo "2582"]
[BlackElo "2339"]
[TimeControl "180+1"]
[EndTime "9:15:51 PDT"]
[Termination "azikom won on time"]

1. e4 {[%clk 0:02:59.3]} 1... c5 {[%clk 0:02:59.7]} 2. Nc3 {[%clk 0:02:59.2]}
2... e6 {[%clk 0:02:59.6]} 3. g3 {[%clk 0:03:00.1]} 3... Nc6 {[%clk 0:02:58.1]}
4. Bg2 {[%clk 0:03:00.4]} 4... g6 {[%clk 0:02:57.7]} 5. d3 {[%clk 0:03:00.9]}
5... Bg7 {[%clk 0:02:57.3]} 6. h4 {[%clk 0:03:01.5]} 6... h5 {[%clk 0:02:56.1]}
7. Bg5 {[%clk 0:03:00.9]} 7... Nge7 {[%clk 0:02:54.5]} 8. Qd2 {[%clk 0:03:00.6]}
8... d6 {[%clk 0:02:51.8]} 9. O-O-O {[%clk 0:02:59.7]} 9... Qa5 {[%clk
0:02:48.3]} 10. Nge2 {[%clk 0:02:57.9]} 10... Bd7 {[%clk 0:02:43.2]} 11. Kb1
{[%clk 0:02:35.5]} 11... b5 {[%clk 0:02:36.5]} 12. Nc1 {[%clk 0:02:34.4]} 12...
Bxc3 {[%clk 0:02:31.4]} 13. Qxc3 {[%clk 0:02:32.9]} 13... Qxc3 {[%clk
0:02:30.9]} 14. bxc3 {[%clk 0:02:33.8]} 14... Rb8 {[%clk 0:02:28.4]} 15. Bf6
{[%clk 0:02:27.7]} 15... Rg8 {[%clk 0:02:27.2]} 16. Rhe1 {[%clk 0:02:23.1]}
16... a5 {[%clk 0:02:23.2]} 17. f4 {[%clk 0:02:08]} 17... b4 {[%clk 0:02:10.2]}
18. Ka1 {[%clk 0:02:04.1]} 18... a4 {[%clk 0:02:04.6]} 19. Ne2 {[%clk
0:01:49.1]} 19... Nc8 {[%clk 0:01:59.9]} 20. cxb4 {[%clk 0:01:46.8]} 20... Nxb4
{[%clk 0:01:58.5]} 21. Rd2 {[%clk 0:01:42.7]} 21... a3 {[%clk 0:01:47.3]} 22.
Rb1 {[%clk 0:01:41.5]} 22... Ra8 {[%clk 0:01:41.9]} 23. c3 {[%clk 0:01:37.3]}
23... Nc6 {[%clk 0:01:36.4]} 24. Rb7 {[%clk 0:01:35.2]} 24... Rb8 {[%clk
0:01:32.2]} 25. Rxb8 {[%clk 0:01:34.3]} 25... Nxb8 {[%clk 0:01:33.1]} 26. Rd1
{[%clk 0:01:33.5]} 26... Bc6 {[%clk 0:01:22.8]} 27. c4 {[%clk 0:01:30.8]} 27...
Nd7 {[%clk 0:01:13]} 28. Bc3 {[%clk 0:01:30.7]} 28... Ncb6 {[%clk 0:01:01.6]}
29. Rc1 {[%clk 0:01:28.6]} 29... Na4 {[%clk 0:01:00.2]} 30. Bd2 {[%clk
0:01:28.1]} 30... Ke7 {[%clk 0:00:59.6]} 31. Nc3 {[%clk 0:01:27.9]} 31... Nxc3
{[%clk 0:00:58.3]} 32. Rxc3 {[%clk 0:01:27.5]} 32... Ra8 {[%clk 0:00:54.3]} 33.
Bc1 {[%clk 0:01:28]} 33... Nb6 {[%clk 0:00:47.9]} 34. Bf1 {[%clk 0:01:20.4]}
34... f5 {[%clk 0:00:29.6]} 35. e5 {[%clk 0:00:58.2]} 35... dxe5 {[%clk
0:00:24.8]} 36. fxe5 {[%clk 0:00:52.6]} 36... Nd7 {[%clk 0:00:16.1]} 37. Bxa3
{[%clk 0:00:50.8]} 37... Nxe5 {[%clk 0:00:14.6]} 38. Bxc5+ {[%clk 0:00:49.8]}
38... Kf7 {[%clk 0:00:14.8]} 39. Be3 {[%clk 0:00:45.8]} 39... Ba4 {[%clk
0:00:12.5]} 40. Ra3 {[%clk 0:00:40.5]} 40... Bc6 {[%clk 0:00:12.2]} 41. Rxa8
{[%clk 0:00:39.7]} 41... Bxa8 {[%clk 0:00:13.1]} 42. Kb2 {[%clk 0:00:39.1]}
42... Nc6 {[%clk 0:00:13.1]} 43. d4 {[%clk 0:00:36.1]} 43... e5 {[%clk
0:00:12.4]} 44. dxe5 {[%clk 0:00:35.7]} 44... Nxe5 {[%clk 0:00:12.3]} 45. Kc3
{[%clk 0:00:36.3]} 45... Ng4 {[%clk 0:00:11.1]} 46. Bf4 {[%clk 0:00:34.8]} 46...
Nf6 {[%clk 0:00:06.4]} 47. a4 {[%clk 0:00:33.1]} 47... Ne4+ {[%clk 0:00:06.5]}
48. Kb4 {[%clk 0:00:33]} 1-0

[Event "Early-Titled-Tuesday-Blitz-October-10-2023"]
[Site "Chess.com"]
[Date "2023.10.10"]
[Round "7"]
[White "ArmanGhevondyanchess"]
[Black "GMKrikor"]
[Result "0-1"]
[WhiteElo "2571"]
[BlackElo "2838"]
[TimeControl "180+1"]
[EndTime "9:15:52 PDT"]
[Termination "GMKrikor won by resignation"]

1. Nf3 {[%clk 0:02:59.7]} 1... d5 {[%clk 0:02:59.7]} 2. d4 {[%clk 0:03:00.2]}
2... Bf5 {[%clk 0:02:55]} 3. g3 {[%clk 0:03:00.6]} 3... Nc6 {[%clk 0:02:54.1]}
4. Bg2 {[%clk 0:03:01.3]} 4... Nb4 {[%clk 0:02:54.6]} 5. Na3 {[%clk 0:03:01.4]}
5... e6 {[%clk 0:02:54.9]} 6. O-O {[%clk 0:03:02]} 6... Be7 {[%clk 0:02:53.2]}
7. Ne5 {[%clk 0:02:59.4]} 7... Nf6 {[%clk 0:02:46.6]} 8. Nd3 {[%clk 0:02:55.8]}
8... a5 {[%clk 0:02:40.9]} 9. c3 {[%clk 0:02:54.2]} 9... Nc6 {[%clk 0:02:41]}
10. Nc2 {[%clk 0:02:54]} 10... O-O {[%clk 0:02:38.9]} 11. Re1 {[%clk 0:02:52.5]}
11... h6 {[%clk 0:02:38.5]} 12. Bf4 {[%clk 0:02:51.7]} 12... Ne4 {[%clk
0:02:21.9]} 13. f3 {[%clk 0:02:49.2]} 13... Nd6 {[%clk 0:02:19.4]} 14. e4 {[%clk
0:02:45.9]} 14... Bh7 {[%clk 0:02:19.6]} 15. Qe2 {[%clk 0:02:37.2]} 15... Re8
{[%clk 0:02:07.1]} 16. Rad1 {[%clk 0:02:33.1]} 16... b6 {[%clk 0:02:02.5]} 17.
g4 {[%clk 0:02:14.9]} 17... Bh4 {[%clk 0:01:51.1]} 18. Bg3 {[%clk 0:02:11.9]}
18... Bxg3 {[%clk 0:01:10.9]} 19. hxg3 {[%clk 0:02:11.2]} 19... dxe4 {[%clk
0:01:11.7]} 20. fxe4 {[%clk 0:02:09]} 20... e5 {[%clk 0:01:12.3]} 21. Nf2 {[%clk
0:01:40.7]} 21... Qg5 {[%clk 0:01:01.7]} 22. d5 {[%clk 0:01:32]} 22... Nb8
{[%clk 0:00:58.2]} 23. Ne3 {[%clk 0:01:32.6]} 23... Nd7 {[%clk 0:00:58.2]} 24.
Kh2 {[%clk 0:01:27.7]} 24... Bg6 {[%clk 0:00:45.2]} 25. Nf5 {[%clk 0:01:25.6]}
25... Bxf5 {[%clk 0:00:44.3]} 26. gxf5 {[%clk 0:01:26.5]} 26... Nf6 {[%clk
0:00:41.9]} 27. Bf3 {[%clk 0:01:22.4]} 27... h5 {[%clk 0:00:40.6]} 28. Rh1
{[%clk 0:01:17.4]} 28... g6 {[%clk 0:00:40.7]} 29. fxg6 {[%clk 0:00:58.9]} 29...
fxg6 {[%clk 0:00:40.9]} 30. Nh3 {[%clk 0:00:55.3]} 30... Qh6 {[%clk 0:00:40.2]}
31. Kg2 {[%clk 0:00:52.8]} 31... Kg7 {[%clk 0:00:35.7]} 32. Nf2 {[%clk
0:00:50.2]} 32... Rf8 {[%clk 0:00:28.4]} 33. Rh2 {[%clk 0:00:46.6]} 33... Nh7
{[%clk 0:00:23.8]} 34. Nd3 {[%clk 0:00:43.5]} 34... Rae8 {[%clk 0:00:22.9]} 35.
Kg1 {[%clk 0:00:31.9]} 35... Ng5 {[%clk 0:00:22.5]} 36. Bh1 {[%clk 0:00:31]}
36... Ngf7 {[%clk 0:00:20.1]} 37. b3 {[%clk 0:00:27.9]} 37... Qg5 {[%clk
0:00:20]} 38. Rg2 {[%clk 0:00:25]} 38... Nh6 {[%clk 0:00:20.3]} 39. c4 {[%clk
0:00:22.3]} 39... Ng4 {[%clk 0:00:17.5]} 40. Re1 {[%clk 0:00:18.2]} 40... Rf6
{[%clk 0:00:16.5]} 41. c5 {[%clk 0:00:18.2]} 41... Nb5 {[%clk 0:00:17.2]} 42. d6
{[%clk 0:00:16.7]} 42... Nd4 {[%clk 0:00:17.4]} 43. Qd1 {[%clk 0:00:12.6]} 43...
Nf3+ {[%clk 0:00:17.2]} 44. Qxf3 {[%clk 0:00:13.2]} 44... Rxf3 {[%clk
0:00:17.4]} 45. d7 {[%clk 0:00:10.4]} 45... Rd8 {[%clk 0:00:16.7]} 46. c6 {[%clk
0:00:05.2]} 46... Rxd3 {[%clk 0:00:16.1]} 47. Rf1 {[%clk 0:00:04.4]} 47... Qe3+
{[%clk 0:00:14.9]} 0-1

[Event "Early-Titled-Tuesday-Blitz-October-10-2023"]
[Site "Chess.com"]
[Date "2023.10.10"]
[Round "7"]
[White "Alenzer"]
[Black "MdChess1734"]
[Result "0-1"]
[WhiteElo "2119"]
[BlackElo "2385"]
[TimeControl "180+1"]
[EndTime "9:15:53 PDT"]
[Termination "MdChess1734 won on time"]

1. e4 {[%clk 0:02:59]} 1... c6 {[%clk 0:02:57.2]} 2. Nc3 {[%clk 0:02:58.7]} 2...
d5 {[%clk 0:02:57.3]} 3. Qe2 {[%clk 0:02:59.3]} 3... d4 {[%clk 0:02:52.2]} 4.
Nd1 {[%clk 0:02:58]} 4... c5 {[%clk 0:02:51.6]} 5. d3 {[%clk 0:02:56.5]} 5...
Nc6 {[%clk 0:02:51.5]} 6. g3 {[%clk 0:02:49.4]} 6... e5 {[%clk 0:02:48.9]} 7.
Bg2 {[%clk 0:02:45.4]} 7... Bd6 {[%clk 0:02:48.7]} 8. f4 {[%clk 0:02:45.3]} 8...
Nf6 {[%clk 0:02:14.4]} 9. Nf3 {[%clk 0:02:41.6]} 9... Qe7 {[%clk 0:01:57.6]} 10.
O-O {[%clk 0:02:38.5]} 10... Bg4 {[%clk 0:01:43.5]} 11. Nf2 {[%clk 0:02:35.6]}
11... Bd7 {[%clk 0:01:31.6]} 12. f5 {[%clk 0:02:12.5]} 12... Nh5 {[%clk
0:00:40.1]} 13. g4 {[%clk 0:01:51.7]} 13... Nf4 {[%clk 0:00:38.7]} 14. Bxf4
{[%clk 0:01:51.2]} 14... exf4 {[%clk 0:00:38.4]} 15. Rae1 {[%clk 0:01:38.8]}
15... Ne5 {[%clk 0:00:38]} 16. h3 {[%clk 0:01:27.6]} 16... h5 {[%clk 0:00:36.3]}
17. gxh5 {[%clk 0:01:01]} 17... O-O-O {[%clk 0:00:31.7]} 18. Nxe5 {[%clk
0:00:54.7]} 18... Bxe5 {[%clk 0:00:28.4]} 19. Ng4 {[%clk 0:00:52.6]} 19... f6
{[%clk 0:00:27.7]} 20. c3 {[%clk 0:00:46.3]} 20... Be8 {[%clk 0:00:23.6]} 21.
Rf3 {[%clk 0:00:17.3]} 21... Bxh5 {[%clk 0:00:22.5]} 22. c4 {[%clk 0:00:16.5]}
22... g6 {[%clk 0:00:20.7]} 23. b4 {[%clk 0:00:12.7]} 23... cxb4 {[%clk
0:00:14.2]} 24. Rb1 {[%clk 0:00:11.9]} 24... Rdg8 {[%clk 0:00:14.1]} 25. Qb2
{[%clk 0:00:09.5]} 25... Bd6 {[%clk 0:00:10.5]} 26. a3 {[%clk 0:00:08.4]} 26...
bxa3 {[%clk 0:00:09.3]} 27. Qb5 {[%clk 0:00:08.8]} 27... a6 {[%clk 0:00:07.5]}
28. Qb6 {[%clk 0:00:08.8]} 28... Bxg4 {[%clk 0:00:06.5]} 29. hxg4 {[%clk
0:00:08.8]} 29... gxf5 {[%clk 0:00:06.8]} 30. exf5 {[%clk 0:00:06.2]} 30... Rxg4
{[%clk 0:00:06.7]} 31. Kf2 {[%clk 0:00:06.7]} 31... Re8 {[%clk 0:00:04.5]} 32.
Kg1 {[%clk 0:00:03.6]} 32... Rxg2+ {[%clk 0:00:03.3]} 33. Kxg2 {[%clk
0:00:03.3]} 33... Qe2+ {[%clk 0:00:03.9]} 34. Rf2 {[%clk 0:00:03.2]} 34... Rg8+
{[%clk 0:00:04]} 0-1